fUSD/lending_fUSD_20260129
["ID","MTS","AMOUNT","RATE_DAILY","PERIOD"]
[403903056,1769647838166,-214.0,0.00017345,2]
[403903057,1769647838175,-797.29631286,0.00017353,2]
[403903060,1769647838185,-214.0,0.00017363,2]
[403903061,1769647838194,-290.39862941,0.00017371,2]
[403903064,1769647838204,-500.0,0.00017385,2]
[403903066,1769647838214,-624.03043327,0.00017389,2]
[403903068,1769647838225,-1646.82618652,0.00017389,2]
[403903070,1769647838235,-2905.19659756,0.00017389,2]
[403903072,1769647838244,-4346.00036156,0.00017389,2]
[403903074,1769647838253,-5880.2832,0.00017389,2]
[403903076,1769647838263,-214.0,0.00017395,2]
[403903078,1769647838272,-152.21,0.000174,2]
[403903079,1769647838281,-152.21,0.000174,2]
[403903081,1769647838291,-152.21,0.000174,2]
[403903083,1769647838301,-152.21,0.000174,2]
[403903085,1769647838310,-168.0,0.00017411,2]
[403903087,1769647838319,-246.92,0.00017412,2]
[403903088,1769647838329,-12838.49182746,0.00017422,2]
[403903090,1769647838338,-301.1433787,0.00017426,2]
[403903091,1769647838348,-1513.0,0.00017431,2]
[403903092,1769647838357,-500.0,0.0001744,2]
[403903093,1769647838367,-214.0,0.00017446,2]
[403903094,1769647838377,-500.0,0.00017468,2]
[403903095,1769647838386,-797.29631286,0.0001749,2]
[403903096,1769647838396,-500.0,0.00017494,2]
[403903097,1769647838407,-12838.49182746,0.00017517,2]
[403903098,1769647838416,-500.0,0.00017549,2]
[403903099,1769647838426,-214.0,0.00017557,2]
[403903100,1769647838435,-214.0,0.00017572,2]
[403903101,1769647838445,-168.0,0.00017583,2]
[403903102,1769647838454,-650.82,0.00017593,2]
[403903103,1769647838464,-244.81998674,0.00017604,2]
[403903104,1769647838474,-5074.0,0.0001761,2]
[403903105,1769647838484,-12838.49182746,0.00017613,2]
[403903106,1769647838493,-161.39213843,0.0001762,2]
[403903107,1769647838503,-797.29631286,0.00017626,2]
[403903108,1769647838513,-168.0,0.00017658,2]
[403903109,1769647838522,-246.92,0.00017686,2]
[403903110,1769647838531,-1513.0,0.00017686,2]
[403903111,1769647838541,-12838.49182746,0.00017709,2]
[403903112,1769647838550,-152.21,0.00017753,2]
[403903113,1769647838559,-797.29631286,0.00017763,2]
[403903114,1769647838569,-168.0,0.00017792,2]
[403903115,1769647838579,-12838.49182746,0.00017804,2]
[403903117,1769647838588,-500.0,0.00017808,2]
[403903118,1769647838598,-150.0,0.00017839,2]
[403903119,1769647838608,-150.0,0.00017839,2]
[403903120,1769647838617,-500.0,0.00017863,2]
[403903121,1769647838626,-157.4586,0.000179,2]
[403903122,1769647838636,-161.39213843,0.000179,2]
[403903123,1769647838645,-12838.49182746,0.000179,2]
[403903124,1769647838655,-797.29631286,0.000179,2]
[403903125,1769647838665,-1513.0,0.00017912,2]
[403903126,1769647838674,-500.0,0.00017918,2]
[403903127,1769647838683,-246.92,0.0001796,2]
[403903128,1769647838692,-168.0,0.0001797,2]
[403903129,1769647838709,-500.0,0.00017972,2]
[403903130,1769647838718,-206.97303344,0.0001799,2]
[403903131,1769647838728,-206.97303344,0.0001799,2]
[403903132,1769647838737,-152.21,0.0001799,2]
[403903133,1769647838747,-152.21,0.0001799,2]
[403903134,1769647838756,-152.21,0.0001799,2]
[403903135,1769647838765,-152.21,0.0001799,2]
[403903136,1769647838776,-152.21,0.0001799,2]
[403903137,1769647838786,-152.21,0.0001799,2]
[403903138,1769647838795,-152.21,0.0001799,2]
[403903139,1769647838805,-152.21,0.0001799,2]
[403903140,1769647838814,-152.21,0.0001799,2]
[403903141,1769647838823,-152.21,0.0001799,2]
[403903142,1769647838833,-152.21,0.0001799,2]
[403903143,1769647838842,-152.21,0.0001799,2]
[403903144,1769647838852,-152.21,0.0001799,2]
[403903145,1769647838861,-152.21,0.0001799,2]
[403903146,1769647838871,-151.0,0.00017997,2]
[403903147,1769647838880,-500.0,0.00017999,2]
[403903148,1769647838890,-500.0,0.00017999,2]
[403903149,1769647838900,-500.0,0.00017999,2]
[403903150,1769647838910,-209.2,0.00018,2]
[403903151,1769647838920,-3167982.81623353,0.00018,2]
[403903152,1769647838930,-4443.50660987,0.00018,2]
[403903153,1769647838940,-150.0,0.00018,2]
[403903154,1769647838949,-1414783.40384818,0.00018,2]
[403903155,1769647838971,-4852.39229244,0.00018,2]
[403903156,1769647838993,-339327.41932542,0.00018,2]
[403903157,1769647839018,-11357.69576679,0.00018,2]
[403903158,1769647839029,-1538.66320084,0.00018,2]
[403903165,1769647839663,-504.38,0.00017285,2]
[403903225,1769647840651,-860.1123645,0.00017285,2]
[403903264,1769647843352,-317.01731997,0.00017285,2]
[403903265,1769647843362,-151.0,0.0001797,2]
[403903266,1769647843371,-419.13825383,0.00018,2]
[403903267,1769647843382,-289.6773708,0.00018,2]
[403903268,1769647843408,-263.95605343,0.00018,2]
[403903269,1769647843420,-563.86266573,0.00018,2]
[403903270,1769647843477,-160.70113729,0.00018,2]
[403903271,1769647843497,-325.58015431,0.00018,2]
[403903272,1769647843638,-224.01595448,0.00018,2]
[403903273,1769647843677,-1681.50968447,0.00017408,2]
[403903274,1769647843686,-2769.63487344,0.00018,2]
[403903305,1769647845634,-151.0,0.00016609,2]
[403903306,1769647845644,-25907.54784683,0.00018,2]
[403903307,1769647845655,-597.72123317,0.00018,2]
[403903308,1769647845666,-386.67372848,0.00018,2]
[403903309,1769647845677,-3124.32627152,0.00018,2]
[403903318,1769647846067,-891.16,0.00018,2]
[403903323,1769647846124,-881.22596986,0.00018,2]
[403903369,1769647865024,2996.10297248,0.00013254,2]
[403903370,1769647865047,2267.38702752,0.00013254,2]
[403903404,1769648242514,302.0,0.000155,3]
[403903406,1769648858862,-200.0,0.00015905,2]
[403903407,1769648858886,-1000.0,0.00015978,2]
[403903408,1769648858917,-151.0,0.00015979,2]
[403903409,1769648858946,-291.05925441,0.00016273,2]
[403903410,1769648858972,-176.98,0.00016278,2]
[403903411,1769648858994,-300.0,0.00016372,2]
[403903412,1769648859014,-495.75400295,0.00016372,2]
[403903413,1769648965208,-1098.614,0.00015932,2]
[403903414,1769648965232,-151.0,0.00016008,2]
[403903415,1769648978188,151.0,0.00016026,2]
[403903416,1769648994344,151.0,0.0001603,2]
[403903417,1769649010457,151.0,0.00016032,2]
[403903418,1769649027415,151.0,0.00016019,2]
[403903421,1769649031680,-300.0,0.00016372,2]
[403903422,1769649031690,-168.22940156,0.00016372,2]
[403903423,1769649031761,-1031.77059844,0.00016372,2]
[403903424,1769649031771,-300.0,0.00016372,2]
[403903425,1769649031780,-169.47739756,0.00016373,2]
[403903426,1769649031795,-330.52260244,0.00016373,2]
[403903427,1769649031804,-500.0,0.00016373,2]
[403903428,1769649031814,-500.0,0.00016373,2]
[403903429,1769649031823,-500.0,0.00016373,2]
[403903430,1769649031832,-500.0,0.00016373,2]
[403903431,1769649031841,-500.0,0.00016373,2]
[403903432,1769649031850,-329.23,0.00016373,2]
[403903433,1769649031860,-6875.65,0.00016404,2]
[403903434,1769649031869,-1000.0,0.00016578,2]
[403903435,1769649031878,-296.49,0.00016644,2]
[403903436,1769649031887,-329.23,0.00016647,2]
[403903437,1769649031897,-296.49,0.00016698,2]
[403903438,1769649031906,-296.49,0.00016752,2]
[403903439,1769649031916,-150.00306042,0.00016799,2]
[403903440,1769649031925,-163.0,0.000168,2]
[403903441,1769649031934,-163.0,0.000168,2]
[403903442,1769649031944,-296.49,0.00016805,2]
[403903443,1769649031953,-209.40437684,0.00016824,2]
[403903444,1769649031963,-13670.32295435,0.00016834,2]
[403903445,1769649031972,-1000.0,0.00016855,2]
[403903446,1769649031981,-157.4586,0.00016856,2]
[403903447,1769649031991,-158.19351545,0.00016856,2]
[403903448,1769649032000,-161.39213843,0.00016856,2]
[403903449,1769649032009,-28028.47978859,0.00016856,2]
[403903450,1769649032018,-1221.75806229,0.00016856,2]
[403903451,1769649032027,-296.49,0.00016859,2]
[403903452,1769649032036,-217.15233878,0.00016879,2]
[403903453,1769649032045,-296.49,0.00016913,2]
[403903454,1769649032055,-624.03043327,0.00016918,2]
[403903455,1769649032064,-1646.82618652,0.00016918,2]
[403903457,1769649032073,-2905.19659756,0.00016918,2]
[403903459,1769649032082,-4346.00036156,0.00016918,2]
[403903461,1769649032092,-5880.2832,0.00016918,2]
[403903463,1769649032101,-151.0,0.00016919,2]
[403903465,1769649032110,-151.0,0.00016919,2]
[403903467,1769649032119,-151.0,0.00016919,2]
[403903469,1769649032129,-151.0,0.00016919,2]
[403903471,1769649032138,-151.0,0.00016919,2]
[403903472,1769649032147,-151.0,0.00016919,2]
[403903473,1769649032156,-151.0,0.00016919,2]
[403903474,1769649032165,-151.0,0.00016919,2]
[403903475,1769649032174,-151.0,0.00016919,2]
[403903476,1769649032183,-286.67782355,0.00016919,2]
[403903477,1769649032193,-200.0,0.00016919,2]
[403903478,1769649032202,-1000.0,0.00016921,2]
[403903479,1769649032211,-500.0,0.00016921,2]
[403903480,1769649032221,-500.0,0.00016921,2]
[403903481,1769649032230,-1000.0,0.00016921,2]
[403903482,1769649032240,-329.24,0.00016921,2]
[403903483,1769649032252,-177.352,0.00016928,2]
[403903484,1769649032261,-1600.078,0.00016928,2]
[403903485,1769649032270,-225.18697532,0.00016934,2]
[403903486,1769649032280,-13670.32295426,0.00016952,2]
[403903487,1769649032291,-151.0,0.00016953,2]
[403903488,1769649032302,-151.0,0.00016953,2]
[403903489,1769649032312,-300.0,0.00016955,2]
[403903490,1769649032324,-195.88131461,0.00016955,2]
[403903491,1769649032333,-185.24043763,0.00016955,2]
[403903492,1769649032342,-307.37353456,0.00016955,2]
[403903493,1769649032351,-556.87484608,0.00016955,2]
[403903494,1769649032362,-500.0,0.00016955,2]
[403903495,1769649032373,-500.0,0.00016955,2]
[403903496,1769649032382,-310.77,0.00016955,2]
[403903497,1769649032392,-500.0,0.00016955,2]
[403903498,1769649032401,-500.0,0.00016955,2]
[403903499,1769649032411,-500.0,0.00016955,2]
[403903500,1769649032420,-500.0,0.00016955,2]
[403903501,1769649032430,-500.0,0.00016955,2]
[403903502,1769649032440,-537.9533771,0.00016955,2]
[403903503,1769649032449,-180.35739473,0.00016955,2]
[403903504,1769649032458,-500.0,0.00016955,2]
[403903505,1769649032468,-950.36,0.00016956,2]
[403903506,1769649032477,-950.36,0.00016956,2]
[403903507,1769649032486,-950.36,0.00016956,2]
[403903508,1769649032495,-950.36,0.00016956,2]
[403903509,1769649032505,-1636.78,0.00016956,2]
[403903510,1769649032514,-296.49,0.00016966,2]
[403903511,1769649032524,-5143.36357389,0.00016972,2]
[403903512,1769649032537,-22885.11621469,0.00016972,2]
[403903513,1769649032546,-1852.42,0.00016984,2]
[403903514,1769649032556,-200.0,0.00016984,2]
[403903515,1769649032565,-233.51889341,0.00016989,2]
[403903516,1769649032575,-250.0,0.00017,2]
[403903517,1769649032585,-296.49,0.0001702,2]
[403903518,1769649032595,-1000.0,0.00017039,2]
[403903519,1769649032604,-242.15909246,0.00017044,2]
[403903520,1769649032613,-150.0,0.00017056,2]
[403903521,1769649032622,-500.0,0.00017056,2]
[403903522,1769649032632,-500.0,0.00017056,2]
[403903523,1769649032641,-1549.94953797,0.00017071,2]
[403903524,1769649032653,-12120.37341629,0.00017071,2]
[403903525,1769649032662,-296.49,0.00017073,2]
[403903526,1769649032671,-2869.40934729,0.00017088,2]
[403903527,1769649032690,-4812.93284303,0.00017088,2]
[403903528,1769649032706,-8108.35026846,0.00017088,2]
[403903529,1769649032717,-499.50294632,0.00017088,2]
[403903535,1769649037920,-11738.28438348,0.00017088,2]
[403903536,1769649037929,-251.11897888,0.00017099,2]
[403903537,1769649037939,-150.0,0.00017111,2]
[403903538,1769649037949,-500.0,0.00017111,2]
[403903539,1769649037959,-500.0,0.00017111,2]
[403903540,1769649037969,-296.49,0.00017127,2]
[403903541,1769649037979,-500.0,0.00017138,2]
[403903542,1769649037988,-500.0,0.00017138,2]
[403903543,1769649037998,-500.0,0.00017138,2]
[403903544,1769649038007,-500.0,0.00017138,2]
[403903545,1769649038016,-500.0,0.00017138,2]
[403903546,1769649038026,-500.0,0.00017138,2]
[403903547,1769649038035,-500.0,0.00017138,2]
[403903548,1769649038044,-500.0,0.00017138,2]
[403903549,1769649038054,-500.0,0.00017151,2]
[403903550,1769649038063,-260.4103811,0.00017154,2]
[403903551,1769649038073,-16554.68,0.00017161,2]
[403903552,1769649038082,-200.0,0.00017166,2]
[403903553,1769649038092,-500.0,0.00017166,2]
[403903554,1769649038101,-500.0,0.00017166,2]
[403903555,1769649038110,-1000.0,0.00017177,2]
[403903556,1769649038120,-296.49,0.00017181,2]
[403903557,1769649038130,-13670.32295426,0.00017189,2]
[403903558,1769649038139,-28028.47978858,0.00017204,2]
[403903560,1769649038148,-270.0455652,0.00017209,2]
[403903562,1769649038159,-599.58884961,0.0001722,2]
[403903564,1769649038168,-500.0,0.0001722,2]
[403903566,1769649038178,-296.49,0.00017234,2]
[403903568,1769649038188,-280.03725112,0.00017264,2]
[403903569,1769649038197,-500.0,0.00017275,2]
[403903570,1769649038207,-296.49,0.00017288,2]
[403903571,1769649038217,-163.0,0.000173,2]
[403903572,1769649038227,-163.0,0.000173,2]
[403903573,1769649038237,-13670.32295426,0.00017308,2]
[403903574,1769649038250,-290.39862941,0.00017319,2]
[403903575,1769649038259,-28028.47978858,0.0001732,2]
[403903576,1769649038269,-500.0,0.0001733,2]
[403903577,1769649038278,-296.49,0.00017342,2]
[403903578,1769649038288,-500.0,0.00017365,2]
[403903579,1769649038298,-301.1433787,0.00017374,2]
[403903580,1769649038308,-500.0,0.00017385,2]
[403903582,1769649038318,-199.0,0.00017385,2]
[403903583,1769649038329,-296.49,0.00017395,2]
[403903584,1769649038339,-13670.32295426,0.00017426,2]
[403903585,1769649038348,-28028.47978858,0.00017436,2]
[403903586,1769649038358,-500.0,0.0001744,2]
[403903587,1769649038367,-296.49,0.00017449,2]
[403903588,1769649038376,-150.0,0.00017456,2]
[403903589,1769649038386,-150.0,0.00017456,2]
[403903590,1769649038395,-1500.0,0.00017468,2]
[403903591,1769649038404,-244.81998674,0.00017494,2]
[403903592,1769649038414,-235.34687346,0.00017496,2]
[403903593,1769649038424,-250.0,0.00017496,2]
[403903594,1769649038433,-600.0,0.00017496,2]
[403903595,1769649038443,-296.49,0.00017503,2]
[403903596,1769649038452,-199.0,0.00017512,2]
[403903597,1769649038463,-195.0,0.00017526,2]
[403903598,1769649038472,-233.07568092,0.00017526,2]
[403903599,1769649038481,-13670.32295426,0.00017545,2]
[403903600,1769649038490,-28028.47978858,0.00017552,2]
[403903601,1769649038499,-296.49,0.00017556,2]
[403903602,1769649038508,-199.0,0.00017598,2]
[403903603,1769649038518,-296.49,0.0001761,2]
[403903604,1769649038527,-195.0,0.00017618,2]
[403903605,1769649038536,-13670.32295426,0.00017663,2]
[403903606,1769649038545,-296.49,0.00017664,2]
[403903607,1769649038554,-28028.47978858,0.00017668,2]
[403903608,1769649038564,-199.0,0.00017692,2]
[403903609,1769649038573,-199.0,0.00017729,2]
[403903610,1769649038583,-199.0,0.00017739,2]
[403903611,1769649038592,-1000.0,0.00017776,2]
[403903612,1769649038601,-13670.32295426,0.00017782,2]
[403903613,1769649038610,-28028.47978858,0.00017784,2]
[403903614,1769649038619,-1766.7310861,0.000178,2]
[403903615,1769649038629,-500.0,0.00017808,2]
[403903616,1769649038638,-2000.0,0.0001782,2]
[403903617,1769649038647,-2000.0,0.0001782,2]
[403903618,1769649038657,-5071.0,0.00017831,2]
[403903619,1769649038666,-500.0,0.00017863,2]
[403903620,1769649038675,-199.0,0.0001787,2]
[403903621,1769649038684,-420.0,0.00017893,2]
[403903622,1769649038693,-500.0,0.00017899,2]
[403903623,1769649038702,-163.0,0.000179,2]
[403903624,1769649038712,-163.0,0.000179,3]
[403903625,1769649038721,-13670.32295426,0.000179,2]
[403903626,1769649038731,-1512.69052239,0.000179,2]
[403903627,1769649038740,-28028.47978858,0.000179,2]
[403903628,1769649038750,-797.29631288,0.000179,2]
[403903629,1769649038759,-222.17019637,0.000179,2]
[403903630,1769649038768,-199.0,0.00017903,2]
[403903631,1769649038778,-500.0,0.00017918,2]
[403903632,1769649038788,-500.0,0.00017972,2]
[403903633,1769649038797,-164.67448754,0.00017973,2]
[403903634,1769649038807,-1680.0,0.00017982,2]
[403903635,1769649038817,-381.05537503,0.0001799,2]
[403903636,1769649038827,-381.05537503,0.0001799,2]
[403903637,1769649038837,-381.05537503,0.0001799,2]
[403903638,1769649038846,-152.21,0.0001799,2]
[403903639,1769649038856,-152.21,0.0001799,2]
[403903640,1769649038866,-152.21,0.0001799,2]
[403903641,1769649038875,-152.21,0.0001799,2]
[403903642,1769649038885,-152.21,0.0001799,2]
[403903643,1769649038894,-152.21,0.0001799,2]
[403903644,1769649038903,-152.21,0.0001799,2]
[403903645,1769649038912,-152.21,0.0001799,2]
[403903646,1769649038922,-152.21,0.0001799,2]
[403903647,1769649038931,-152.21,0.0001799,2]
[403903648,1769649038940,-152.21,0.0001799,2]
[403903649,1769649038949,-152.21,0.0001799,2]
[403903650,1769649038960,-152.21,0.0001799,2]
[403903651,1769649038969,-152.21,0.0001799,2]
[403903652,1769649038979,-152.21,0.0001799,2]
[403903653,1769649038988,-152.21,0.0001799,2]
[403903654,1769649038997,-152.21,0.0001799,2]
[403903655,1769649039006,-152.21,0.0001799,2]
[403903656,1769649039016,-152.21,0.0001799,2]
[403903657,1769649039025,-151.0,0.00017997,2]
[403903658,1769649039034,-46489.6717534,0.00017998,2]
[403903659,1769649039044,-500.0,0.00017999,2]
[403903660,1769649039053,-500.0,0.00017999,2]
[403903661,1769649039062,-500.0,0.00017999,2]
[403903662,1769649039071,-499.999999,0.00017999,2]
[403903663,1769649039081,-1211717.54894467,0.00018,2]
[403903664,1769649039090,-1492986.79869882,0.00018,2]
[403903665,1769649039099,-1864388.53733189,0.00018,2]
[403903666,1769649039658,-8608.54535819,0.00018,2]
[403903667,1769649039678,-4000.0,0.00018,2]
[403903668,1769649039688,-694.84877467,0.00018,2]
[403903670,1769649040178,-90705.01855411,0.00018,2]
[403903671,1769649040189,-332.66961884,0.00018,2]
[403903751,1769649046040,-151.0,0.00016783,2]
[403903752,1769649046050,-1160.9557303,0.00018,2]
[403903753,1769649046062,-4639.57630477,0.00018,2]
[403903756,1769649046201,-68.40903973,0.00018,2]
[403903768,1769649047079,528.10401938,0.00015978,2]
[403903769,1769649047100,471.89598062,0.00015978,2]
[403903770,1769649231054,166.91963201,0.00013786,2]
[403903771,1769649231970,150.14685126,0.00013786,2]
[403903775,1769650038137,-2050.4479533,0.00015,2]
[403903776,1769650038159,-1215.09179142,0.00015,2]
[403903777,1769650038180,-262.55520896,0.000153,2]
[403903778,1769650038202,-500.0,0.00015503,2]
[403903779,1769650038225,-166.66,0.00015603,2]
[403903780,1769650038247,-195.0,0.00015622,2]
[403903781,1769650038270,-233.07568092,0.00015641,2]
[403903782,1769650038292,-600.0,0.00015679,2]
[403903783,1769650038315,-150.00380465,0.00015781,2]
[403903784,1769650038339,-281.09274156,0.00015894,2]
[403903785,1769650038363,-1600.0,0.00015907,2]
[403903786,1769650038391,-166.66,0.00015932,2]
[403903787,1769650038416,-166.66,0.0001626,2]
[403903788,1769650038441,-1200.0,0.00016372,2]
[403903789,1769650038463,-500.0,0.00016373,2]
[403903790,1769650038484,-500.0,0.00016373,2]
[403903791,1769650038504,-500.0,0.00016373,2]
[403903792,1769650038524,-73.20805426,0.00016373,2]
[403903795,1769650138582,166.91963201,0.00013786,2]
[403903796,1769650139639,150.14685126,0.00013786,2]
[403903797,1769650156229,-1504.524012,0.00015944,2]
[403903798,1769650156251,-151.0,0.00016024,2]
[403903799,1769650156271,-151.0,0.0001603,2]
[403903800,1769650156292,-151.0,0.00016031,2]
[403903801,1769650156312,-151.0,0.00016034,2]
[403903802,1769650156331,-151.0,0.00016034,2]
[403903803,1769650158528,151.0,0.00016037,2]
[403903804,1769650159377,151.0,0.00016037,2]
[403903805,1769650175796,151.0,0.00016072,2]
[403903806,1769650192216,151.0,0.00016072,2]
[403903808,1769650208657,151.0,0.00016082,2]
[403903814,1769650225047,151.0,0.00016086,2]
[403903825,1769650231943,-379.8166914,0.00016373,2]
[403903826,1769650231955,-120.1833086,0.00016373,2]
[403903827,1769650231964,-500.0,0.00016373,2]
[403903828,1769650231974,-311.7066914,0.000165,2]
[403903829,1769650231985,-2689.8864802,0.000165,2]
[403903830,1769650231995,-300.0,0.00016523,2]
[403903831,1769650232006,-300.0,0.00016523,2]
[403903832,1769650232015,-1200.0,0.00016523,2]
[403903833,1769650232025,-14290.92257222,0.00016524,2]
[403903834,1769650232170,-995.88708944,0.00016524,2]
[403903835,1769650232181,-5865.64966177,0.00016524,2]
[403903836,1769650232192,-90182.40817657,0.00016524,2]
[403903837,1769650232201,-166.66,0.00016589,2]
[403903838,1769650232210,-10518.07376966,0.00016623,2]
[403903839,1769650232219,-305.387,0.00016624,2]
[403903840,1769650232228,-2500.0,0.00016634,2]
[403903841,1769650232237,-51.42220284,0.00016634,2]
[403903842,1769650232248,-1715.30888326,0.00016634,2]
[403903843,1769650232257,-158.19351545,0.00016634,2]
[403903844,1769650232266,-19721.5971652,0.00016634,2]
[403903845,1769650232276,-159.81572428,0.00016634,2]
[403903846,1769650232284,-500.0,0.00016714,2]
[403903848,1769650232293,-179.42019746,0.00016722,2]
[403903850,1769650232302,-297.88067512,0.00016722,2]
[403903852,1769650232311,-489.51148883,0.00016722,2]
[403903854,1769650232320,-500.0,0.00016723,2]
[403903856,1769650232330,-500.0,0.00016723,2]
[403903858,1769650232339,-500.0,0.00016723,2]
[403903860,1769650232348,-500.0,0.00016723,2]
[403903862,1769650232357,-629.82431902,0.00016723,2]
[403903864,1769650232366,-500.0,0.00016723,2]
[403903866,1769650232375,-500.0,0.00016723,2]
[403903868,1769650232384,-500.0,0.00016723,2]
[403903870,1769650232393,-500.0,0.00016723,2]
[403903872,1769650232402,-499.99999999,0.00016723,2]
[403903874,1769650232411,-620.45738366,0.00016723,2]
[403903876,1769650232420,-1280.062,0.00016723,2]
[403903878,1769650232430,-500.0,0.00016733,2]
[403903880,1769650232439,-631.2396331,0.00016733,2]
[403903882,1769650232448,-500.0,0.00016733,2]
[403903884,1769650232457,-349.33,0.00016733,2]
[403903886,1769650232467,-500.0,0.00016733,2]
[403903888,1769650232476,-500.0,0.00016733,2]
[403903890,1769650232485,-500.0,0.00016733,2]
[403903892,1769650232495,-500.0,0.00016733,2]
[403903894,1769650232503,-500.0,0.00016733,2]
[403903896,1769650232513,-333.62601985,0.00016733,2]
[403903898,1769650232523,-500.0,0.00016733,2]
[403903900,1769650232533,-500.0,0.00016733,2]
[403903902,1769650232543,-500.0,0.00016733,2]
[403903904,1769650232552,-365.28,0.00016734,2]
[403903906,1769650232561,-1513.0,0.00016763,2]
[403903907,1769650232570,-10518.07376964,0.00016765,2]
[403903909,1769650232579,-19721.59716518,0.00016775,2]
[403903911,1769650232588,-209.40437684,0.0001684,2]
[403903913,1769650232597,-983.1436,0.00016856,2]
[403903915,1769650232607,-1000.0,0.00016856,2]
[403903917,1769650232619,-7799.06,0.00016894,2]
[403903919,1769650232628,-217.15233878,0.00016895,2]
[403903921,1769650232637,-13876.06754373,0.00016915,2]
[403903923,1769650232649,-5845.52962145,0.00016915,2]
[403903924,1769650232660,-166.66,0.00016917,2]
[403903925,1769650232670,-461.89505,0.00016921,2]
[403903926,1769650232679,-500.0,0.00016921,2]
[403903927,1769650232688,-500.0,0.00016921,2]
[403903928,1769650232698,-835.72712366,0.00016921,2]
[403903929,1769650232709,-310.61,0.00016922,2]
[403903930,1769650232718,-225.18697532,0.0001695,2]
[403903931,1769650232728,-500.0,0.00016955,2]
[403903932,1769650232737,-233.51889341,0.00017005,2]
[403903933,1769650232746,-349.33,0.00017007,2]
[403903934,1769650232756,-200.0,0.00017056,2]
[403903935,1769650232765,-500.0,0.00017056,2]
[403903936,1769650232774,-500.0,0.00017056,2]
[403903937,1769650232783,-15698.98487425,0.00017056,2]
[403903938,1769650232795,-4022.61229093,0.00017056,2]
[403903939,1769650232804,-159.81572425,0.00017056,2]
[403903940,1769650232963,-242.15909246,0.0001706,2]
[403903941,1769650232974,-500.0,0.00017111,2]
[403903942,1769650232983,-599.58884961,0.00017111,2]
[403903943,1769650232992,-251.11897888,0.00017115,2]
[403903944,1769650233001,-150.00380465,0.00017137,2]
[403903945,1769650233010,-619.11060628,0.00017138,2]
[403903946,1769650233020,-1923.18688817,0.00017163,2]
[403903947,1769650233029,-250.0,0.00017163,2]
[403903948,1769650233039,-250.0,0.00017163,2]
[403903949,1769650233048,-235.34687346,0.00017163,2]
[403903950,1769650233057,-600.0,0.00017163,2]
[403903951,1769650233066,-195.0,0.00017163,2]
[403903952,1769650233076,-500.0,0.00017166,2]
[403903953,1769650233086,-260.4103811,0.0001717,2]
[403903954,1769650233095,-13815.14691933,0.00017197,2]
[403903955,1769650233108,-5906.45024585,0.00017197,2]
[403903956,1769650233118,-500.0,0.0001722,2]
[403903957,1769650233127,-270.0455652,0.00017225,2]
[403903958,1769650233137,-150.0,0.00017234,2]
[403903959,1769650233146,-150.0,0.00017234,2]
[403903960,1769650233156,-166.66,0.00017246,2]
[403903961,1769650233166,-500.0,0.00017275,2]
[403903962,1769650233176,-860.0,0.0001728,2]
[403903963,1769650233185,-280.03725112,0.0001728,2]
[403903964,1769650233195,-349.33,0.00017281,2]
[403903965,1769650233205,-500.0,0.0001733,2]
[403903966,1769650233215,-290.39862941,0.00017335,2]
[403903967,1769650233225,-19721.59716518,0.00017337,2]
[403903968,1769650233237,-1069.03830453,0.00017378,2]
[403903969,1769650233247,-244.81998674,0.00017385,2]